[Event "*** SCC Grand Prix: Titled Tuesday Blitz"]
[Site "Chess.com"]
[Date "2020.06.23"]
[Round "3"]
[White "AGW2016"]
[Black "MoreChessJulia"]
[Result "1-0"]
[WhiteElo "2233"]
[BlackElo "1759"]
[TimeControl "180+1"]
[EndTime "10:24:47 PDT"]
[Termination "AGW2016 won by resignation"]

1. d4 {[%clk 0:03:00.9]} 1... g6 {[%clk 0:02:53.6]} 2. e4 {[%clk 0:03:00.5]}
2... Bg7 {[%clk 0:02:53.3]} 3. Nc3 {[%clk 0:03:00.2]} 3... c5 {[%clk 0:02:53]}
4. d5 {[%clk 0:02:59.8]} 4... d6 {[%clk 0:02:51.8]} 5. f4 {[%clk 0:03:00]} 5...
a6 {[%clk 0:02:51.3]} 6. a4 {[%clk 0:02:59.7]} 6... h5 {[%clk 0:02:42.9]} 7. Nf3
{[%clk 0:02:59]} 7... Bg4 {[%clk 0:02:42.3]} 8. Bd3 {[%clk 0:02:55]} 8... Nd7
{[%clk 0:02:41.4]} 9. O-O {[%clk 0:02:54.2]} 9... Nh6 {[%clk 0:02:40.7]} 10. h3
{[%clk 0:02:50.8]} 10... Bxf3 {[%clk 0:02:39.1]} 11. Qxf3 {[%clk 0:02:51.7]}
11... f5 {[%clk 0:02:37.6]} 12. Bd2 {[%clk 0:02:46.5]} 12... O-O {[%clk
0:02:35.9]} 13. Qg3 {[%clk 0:02:42.3]} 13... Qe8 {[%clk 0:02:32.9]} 14. Rae1
{[%clk 0:02:40.7]} 14... fxe4 {[%clk 0:02:27.7]} 15. Nxe4 {[%clk 0:02:37.2]}
15... Qf7 {[%clk 0:02:24.3]} 16. Ng5 {[%clk 0:02:33.3]} 16... Qxd5 {[%clk
0:02:16.3]} 17. Ne6 {[%clk 0:02:23.7]} 17... Bd4+ {[%clk 0:01:58]} 18. Kh1
{[%clk 0:02:16.7]} 18... Rf6 {[%clk 0:01:50.7]} 19. Nxd4 {[%clk 0:02:15.9]}
19... Qxd4 {[%clk 0:01:46.7]} 20. Rxe7 {[%clk 0:02:12.6]} 20... Nf8 {[%clk
0:01:39.8]} 21. Bc3 {[%clk 0:02:10.2]} 1-0

[Event "*** SCC Grand Prix: Titled Tuesday Blitz"]
[Site "Chess.com"]
[Date "2020.06.23"]
[Round "3"]
[White "fabianvivasz"]
[Black "TheLawAdv"]
[Result "1-0"]
[WhiteElo "2285"]
[BlackElo "2012"]
[TimeControl "180+1"]
[EndTime "10:24:52 PDT"]
[Termination "fabianvivasz won by resignation"]

1. e4 {[%clk 0:02:22.3]} 1... c5 {[%clk 0:02:58.3]} 2. Nc3 {[%clk 0:02:21.4]}
2... d6 {[%clk 0:02:54.8]} 3. f4 {[%clk 0:02:18.2]} 3... e6 {[%clk 0:02:54.9]}
4. Nf3 {[%clk 0:02:16.1]} 4... g6 {[%clk 0:02:55.1]} 5. d4 {[%clk 0:02:13.9]}
5... cxd4 {[%clk 0:02:52.3]} 6. Qxd4 {[%clk 0:02:14.8]} 6... Nf6 {[%clk
0:02:49.3]} 7. e5 {[%clk 0:02:05.7]} 7... dxe5 {[%clk 0:02:48.9]} 8. Qxd8+
{[%clk 0:02:05.9]} 8... Kxd8 {[%clk 0:02:49.3]} 9. Nxe5 {[%clk 0:02:06.8]} 9...
Ke8 {[%clk 0:02:45.5]} 10. Bb5+ {[%clk 0:02:00.7]} 10... Nbd7 {[%clk 0:02:39]}
11. Be3 {[%clk 0:01:45]} 11... a6 {[%clk 0:02:38.1]} 12. Bxd7+ {[%clk
0:01:33.1]} 12... Nxd7 {[%clk 0:02:36.1]} 13. O-O-O {[%clk 0:01:06.4]} 13...
Nxe5 {[%clk 0:02:35.4]} 14. fxe5 {[%clk 0:01:07.3]} 14... Bd7 {[%clk 0:02:35.8]}
15. Ne4 {[%clk 0:01:06.3]} 15... Bc6 {[%clk 0:02:34.1]} 16. Nf6+ {[%clk
0:01:03.5]} 1-0

[Event "*** SCC Grand Prix: Titled Tuesday Blitz"]
[Site "Chess.com"]
[Date "2020.06.23"]
[Round "3"]
[White "ruslansezdbekov"]
[Black "crossingthestreet"]
[Result "1-0"]
[WhiteElo "2572"]
[BlackElo "2383"]
[TimeControl "180+1"]
[EndTime "10:25:05 PDT"]
[Termination "ruslansezdbekov won by resignation"]

1. e4 {[%clk 0:03:00.9]} 1... e6 {[%clk 0:02:59.8]} 2. d4 {[%clk 0:03:00.5]}
2... d5 {[%clk 0:03:00]} 3. e5 {[%clk 0:03:00.2]} 3... c5 {[%clk 0:03:00]} 4. c3
{[%clk 0:02:59.8]} 4... Nc6 {[%clk 0:03:00.4]} 5. Nf3 {[%clk 0:03:00]} 5... Bd7
{[%clk 0:03:00.9]} 6. a3 {[%clk 0:02:59.7]} 6... f6 {[%clk 0:03:00.2]} 7. exf6
{[%clk 0:02:59.1]} 7... Nxf6 {[%clk 0:03:00.4]} 8. Bd3 {[%clk 0:02:58.9]} 8...
cxd4 {[%clk 0:02:56.7]} 9. cxd4 {[%clk 0:02:58.5]} 9... Bd6 {[%clk 0:02:57.3]}
10. O-O {[%clk 0:02:58.4]} 10... O-O {[%clk 0:02:57.7]} 11. Nc3 {[%clk
0:02:58.1]} 11... a6 {[%clk 0:02:57.4]} 12. Bg5 {[%clk 0:02:56.4]} 12... Qc7
{[%clk 0:02:56.9]} 13. h3 {[%clk 0:02:52.6]} 13... Rae8 {[%clk 0:02:56.7]} 14.
Rc1 {[%clk 0:02:52]} 14... Bc8 {[%clk 0:02:43.5]} 15. Re1 {[%clk 0:02:51.4]}
15... g6 {[%clk 0:02:36.6]} 16. Bxf6 {[%clk 0:02:48.2]} 16... Rxf6 {[%clk
0:02:36.1]} 17. Nxd5 {[%clk 0:02:48.4]} 17... exd5 {[%clk 0:02:29.7]} 18. Rxe8+
{[%clk 0:02:47.4]} 18... Kf7 {[%clk 0:02:23.4]} 19. Qe2 {[%clk 0:02:45.3]} 19...
Bd7 {[%clk 0:02:22.7]} 20. Re3 {[%clk 0:02:36.2]} 20... Nxd4 {[%clk 0:02:11.8]}
21. Qd1 {[%clk 0:02:31.9]} 21... Nxf3+ {[%clk 0:02:11.4]} 22. Rxf3 {[%clk
0:02:31.5]} 22... Qd8 {[%clk 0:02:08.5]} 23. Be2 {[%clk 0:02:21.3]} 23... Bc6
{[%clk 0:02:02]} 24. Rcc3 {[%clk 0:02:18.3]} 24... Kg7 {[%clk 0:02:00.2]} 25.
Qd4 {[%clk 0:02:14.3]} 25... Qe7 {[%clk 0:01:51.1]} 26. Rce3 {[%clk 0:02:13.5]}
26... Qf7 {[%clk 0:01:48.5]} 27. g4 {[%clk 0:02:04.5]} 27... Bf4 {[%clk
0:01:45.8]} 28. Rxf4 {[%clk 0:02:01.8]} 1-0

[Event "*** SCC Grand Prix: Titled Tuesday Blitz"]
[Site "Chess.com"]
[Date "2020.06.23"]
[Round "3"]
[White "Vaathi_Coming"]
[Black "Sven_Tica"]
[Result "1-0"]
[WhiteElo "2856"]
[BlackElo "2643"]
[TimeControl "180+1"]
[EndTime "10:25:26 PDT"]
[Termination "Vaathi_Coming won by resignation"]

1. g3 {[%clk 0:03:00.9]} 1... d5 {[%clk 0:02:59.8]} 2. Nf3 {[%clk 0:03:00.5]}
2... Nf6 {[%clk 0:02:58]} 3. Bg2 {[%clk 0:03:00.3]} 3... e6 {[%clk 0:02:58.7]}
4. d4 {[%clk 0:02:59.7]} 4... Be7 {[%clk 0:02:59.6]} 5. O-O {[%clk 0:02:59.7]}
5... O-O {[%clk 0:03:00.3]} 6. Ne5 {[%clk 0:02:56.3]} 6... c5 {[%clk 0:02:55.9]}
7. dxc5 {[%clk 0:02:53.9]} 7... Bxc5 {[%clk 0:02:51]} 8. c4 {[%clk 0:02:53.6]}
8... Nc6 {[%clk 0:02:49.3]} 9. Nd3 {[%clk 0:02:50.9]} 9... Be7 {[%clk
0:02:44.8]} 10. cxd5 {[%clk 0:02:48.9]} 10... Nxd5 {[%clk 0:02:45.4]} 11. Nc3
{[%clk 0:02:32.8]} 11... Nxc3 {[%clk 0:02:42.9]} 12. bxc3 {[%clk 0:02:33.7]}
12... Bf6 {[%clk 0:02:38.2]} 13. Ba3 {[%clk 0:02:26.8]} 13... Re8 {[%clk
0:02:34.9]} 14. Qa4 {[%clk 0:02:22]} 14... Qc7 {[%clk 0:02:12.2]} 15. Rab1
{[%clk 0:02:16]} 15... Rd8 {[%clk 0:02:02.6]} 16. Rfd1 {[%clk 0:01:53.7]} 16...
Na5 {[%clk 0:01:41.3]} 17. Nc5 {[%clk 0:01:42.8]} 17... Rxd1+ {[%clk 0:01:37.4]}
18. Rxd1 {[%clk 0:01:43.7]} 18... Be7 {[%clk 0:01:37.9]} 19. Qe8+ {[%clk
0:01:39.2]} 19... Bf8 {[%clk 0:01:32.4]} 20. Rd8 {[%clk 0:01:39]} 1-0

[Event "*** SCC Grand Prix: Titled Tuesday Blitz"]
[Site "Chess.com"]
[Date "2020.06.23"]
[Round "3"]
[White "korbul"]
[Black "PavelChernomordik"]
[Result "1-0"]
[WhiteElo "2510"]
[BlackElo "2300"]
[TimeControl "180+1"]
[EndTime "10:25:32 PDT"]
[Termination "korbul won by resignation"]

1. e4 {[%clk 0:03:00.9]} 1... g6 {[%clk 0:02:59.8]} 2. d4 {[%clk 0:03:00.3]}
2... Bg7 {[%clk 0:03:00.3]} 3. Nc3 {[%clk 0:03:00.3]} 3... d6 {[%clk 0:03:00.2]}
4. Bg5 {[%clk 0:03:00]} 4... h6 {[%clk 0:02:58.2]} 5. Be3 {[%clk 0:02:58.7]}
5... a6 {[%clk 0:02:55.9]} 6. a4 {[%clk 0:02:54.8]} 6... b6 {[%clk 0:02:53.6]}
7. Bd3 {[%clk 0:02:51.6]} 7... Bb7 {[%clk 0:02:51.5]} 8. Nf3 {[%clk 0:02:43.4]}
8... c5 {[%clk 0:02:50]} 9. d5 {[%clk 0:02:40.6]} 9... Nf6 {[%clk 0:02:47.2]}
10. h3 {[%clk 0:02:39.4]} 10... O-O {[%clk 0:02:44.9]} 11. O-O {[%clk
0:02:37.8]} 11... Qc7 {[%clk 0:02:38.8]} 12. Nd2 {[%clk 0:02:30.9]} 12... e5
{[%clk 0:02:34.9]} 13. Nc4 {[%clk 0:02:28.1]} 13... Nbd7 {[%clk 0:02:21.4]} 14.
Qd2 {[%clk 0:02:26.2]} 14... Kh7 {[%clk 0:02:19.4]} 15. f4 {[%clk 0:02:25.1]}
15... exf4 {[%clk 0:01:58.6]} 16. Rxf4 {[%clk 0:02:18.5]} 16... Nh5 {[%clk
0:01:51.6]} 17. Rh4 {[%clk 0:01:56.3]} 17... Bf6 {[%clk 0:01:38.6]} 18. Rxh5
{[%clk 0:01:55.2]} 18... gxh5 {[%clk 0:01:37.4]} 19. e5+ {[%clk 0:01:55.4]}
19... Kh8 {[%clk 0:01:34.5]} 20. exf6 {[%clk 0:01:55]} 20... b5 {[%clk
0:01:31.6]} 21. Bd4 {[%clk 0:01:49]} 1-0

[Event "*** SCC Grand Prix: Titled Tuesday Blitz"]
[Site "Chess.com"]
[Date "2020.06.23"]
[Round "3"]
[White "Alexandercs432"]
[Black "Boninknights"]
[Result "1/2-1/2"]
[WhiteElo "2094"]
[BlackElo "2323"]
[TimeControl "180+1"]
[EndTime "10:25:36 PDT"]
[Termination "Game drawn by repetition"]

1. e4 {[%clk 0:03:00.9]} 1... c5 {[%clk 0:02:57.9]} 2. Nf3 {[%clk 0:03:01.1]}
2... Nc6 {[%clk 0:02:57.4]} 3. d4 {[%clk 0:03:01.2]} 3... cxd4 {[%clk
0:02:56.6]} 4. Nxd4 {[%clk 0:03:02.1]} 4... e5 {[%clk 0:02:56.1]} 5. Nb5 {[%clk
0:03:01.2]} 5... d6 {[%clk 0:02:55.6]} 6. N1c3 {[%clk 0:03:01.4]} 6... a6 {[%clk
0:02:55.2]} 7. Na3 {[%clk 0:03:02]} 7... Be6 {[%clk 0:02:54.7]} 8. Nc4 {[%clk
0:03:00.7]} 8... Rc8 {[%clk 0:02:53]} 9. Nd5 {[%clk 0:02:55]} 9... Nb4 {[%clk
0:02:41.9]} 10. Nxb4 {[%clk 0:02:44.8]} 10... Bxc4 {[%clk 0:02:39.7]} 11. Bxc4
{[%clk 0:02:43.9]} 11... Rxc4 {[%clk 0:02:38.2]} 12. Nd5 {[%clk 0:02:33]} 12...
Rxe4+ {[%clk 0:02:35]} 13. Be3 {[%clk 0:02:27.9]} 13... Nf6 {[%clk 0:02:25.9]}
14. Nxf6+ {[%clk 0:02:12.1]} 14... Qxf6 {[%clk 0:02:20.2]} 15. O-O {[%clk
0:02:13]} 15... Qe6 {[%clk 0:02:12.6]} 16. b3 {[%clk 0:01:51.8]} 16... d5 {[%clk
0:02:04.9]} 17. Qd3 {[%clk 0:01:41.1]} 17... Be7 {[%clk 0:01:52]} 18. c4 {[%clk
0:01:39.7]} 18... Rg4 {[%clk 0:01:46.5]} 19. cxd5 {[%clk 0:01:35.3]} 19... Rxg2+
{[%clk 0:01:40.6]} 20. Kxg2 {[%clk 0:01:28.8]} 20... Qg4+ {[%clk 0:01:40.1]} 21.
Kh1 {[%clk 0:01:25.6]} 21... Qf3+ {[%clk 0:01:39.5]} 22. Kg1 {[%clk 0:01:25.2]}
22... Qg4+ {[%clk 0:01:39.2]} 23. Kh1 {[%clk 0:01:25.3]} 23... Qf3+ {[%clk
0:01:38.9]} 24. Kg1 {[%clk 0:01:25.4]} 24... Qg4+ {[%clk 0:01:38.6]} 25. Kh1
{[%clk 0:01:25.5]} 1/2-1/2

[Event "*** SCC Grand Prix: Titled Tuesday Blitz"]
[Site "Chess.com"]
[Date "2020.06.23"]
[Round "3"]
[White "UKR_Master"]
[Black "Azoulas1"]
[Result "1-0"]
[WhiteElo "2311"]
[BlackElo "2026"]
[TimeControl "180+1"]
[EndTime "10:26:05 PDT"]
[Termination "UKR_Master won by checkmate"]

1. e4 {[%clk 0:03:00.9]} 1... c5 {[%clk 0:02:58.5]} 2. Nf3 {[%clk 0:03:00.9]}
2... e6 {[%clk 0:02:57.5]} 3. c3 {[%clk 0:03:01.2]} 3... Nf6 {[%clk 0:02:53.2]}
4. e5 {[%clk 0:03:01.6]} 4... Nd5 {[%clk 0:02:53.1]} 5. d4 {[%clk 0:03:02.5]}
5... cxd4 {[%clk 0:02:52]} 6. cxd4 {[%clk 0:03:03.4]} 6... b6 {[%clk 0:02:51.4]}
7. Bc4 {[%clk 0:03:03.3]} 7... Bb7 {[%clk 0:02:50.2]} 8. Bxd5 {[%clk 0:03:03.5]}
8... Bxd5 {[%clk 0:02:48.7]} 9. Nc3 {[%clk 0:03:04.1]} 9... Bb4 {[%clk
0:02:46.1]} 10. O-O {[%clk 0:03:03.3]} 10... Bxc3 {[%clk 0:02:44.7]} 11. bxc3
{[%clk 0:03:04.2]} 11... Qc8 {[%clk 0:02:39.5]} 12. Ba3 {[%clk 0:02:57.6]} 12...
Nc6 {[%clk 0:02:32.8]} 13. Qe2 {[%clk 0:02:52.9]} 13... Na5 {[%clk 0:02:29.7]}
14. Nd2 {[%clk 0:02:51.6]} 14... Nc4 {[%clk 0:02:27.4]} 15. Nxc4 {[%clk
0:02:48]} 15... Bxc4 {[%clk 0:02:26.1]} 16. Qg4 {[%clk 0:02:48.3]} 16... g6
{[%clk 0:02:20.4]} 17. Qf3 {[%clk 0:02:42.5]} 17... Qc6 {[%clk 0:02:18]} 18. Qf6
{[%clk 0:02:30.9]} 18... d6 {[%clk 0:01:59]} 19. Qxh8+ {[%clk 0:02:20.9]} 19...
Kd7 {[%clk 0:01:58.6]} 20. Qf6 {[%clk 0:02:21]} 20... Bxf1 {[%clk 0:01:57.6]}
21. Qxf7+ {[%clk 0:02:19.4]} 21... Kc8 {[%clk 0:01:56.7]} 22. Rxf1 {[%clk
0:02:18.9]} 22... dxe5 {[%clk 0:01:54.6]} 23. dxe5 {[%clk 0:02:16.3]} 23... Rb8
{[%clk 0:01:52.3]} 24. Rd1 {[%clk 0:02:12.2]} 24... a5 {[%clk 0:01:45.7]} 25.
Bd6 {[%clk 0:02:10.6]} 25... Ra8 {[%clk 0:01:40.5]} 26. Qxe6+ {[%clk 0:02:09.3]}
26... Kb7 {[%clk 0:01:39]} 27. Qf7+ {[%clk 0:02:03.4]} 27... Ka6 {[%clk
0:01:37.4]} 28. e6 {[%clk 0:02:03.8]} 28... Rd8 {[%clk 0:01:32.2]} 29. e7 {[%clk
0:02:03.7]} 29... Rxd6 {[%clk 0:01:30.8]} 30. Rxd6 {[%clk 0:01:58.6]} 30... Qxd6
{[%clk 0:01:30]} 31. Qc4+ {[%clk 0:01:59.1]} 31... b5 {[%clk 0:01:28.8]} 32. Qe2
{[%clk 0:01:59.2]} 32... a4 {[%clk 0:01:18.7]} 33. e8=Q {[%clk 0:01:59.3]} 33...
Qc5 {[%clk 0:01:14.8]} 34. Q2e6+ {[%clk 0:01:56.5]} 34... Ka7 {[%clk 0:01:12.1]}
35. Q8d7+ {[%clk 0:01:56.6]} 35... Kb8 {[%clk 0:01:09.1]} 36. Qee8+ {[%clk
0:01:56.6]} 36... Qc8 {[%clk 0:01:06.5]} 37. Qexc8# {[%clk 0:01:57.5]} 1-0

[Event "*** SCC Grand Prix: Titled Tuesday Blitz"]
[Site "Chess.com"]
[Date "2020.06.23"]
[Round "3"]
[White "ChessicallyInclined"]
[Black "baby_leo"]
[Result "1-0"]
[WhiteElo "2470"]
[BlackElo "1968"]
[TimeControl "180+1"]
[EndTime "10:26:17 PDT"]
[Termination "ChessicallyInclined won by resignation"]

1. d4 {[%clk 0:03:00.9]} 1... Nf6 {[%clk 0:02:55.4]} 2. c4 {[%clk 0:03:01]} 2...
d6 {[%clk 0:02:53.9]} 3. Nc3 {[%clk 0:03:00.5]} 3... Nbd7 {[%clk 0:02:53.5]} 4.
f3 {[%clk 0:03:00.1]} 4... e5 {[%clk 0:02:52.9]} 5. d5 {[%clk 0:02:59.6]} 5...
Be7 {[%clk 0:02:51.4]} 6. e4 {[%clk 0:02:59.2]} 6... O-O {[%clk 0:02:51]} 7. Be3
{[%clk 0:02:59.2]} 7... c6 {[%clk 0:02:49.1]} 8. Nge2 {[%clk 0:02:59]} 8... a5
{[%clk 0:02:47.8]} 9. Qd2 {[%clk 0:02:57.6]} 9... Qc7 {[%clk 0:02:46.4]} 10. g4
{[%clk 0:02:56.8]} 10... Ne8 {[%clk 0:02:20.2]} 11. h4 {[%clk 0:02:50.5]} 11...
Nc5 {[%clk 0:01:50.7]} 12. Ng3 {[%clk 0:02:37.2]} 12... a4 {[%clk 0:01:34]} 13.
h5 {[%clk 0:02:29.3]} 13... Rb8 {[%clk 0:01:18.8]} 14. g5 {[%clk 0:02:28.2]}
14... b5 {[%clk 0:01:07.2]} 15. dxc6 {[%clk 0:02:18.7]} 15... bxc4 {[%clk
0:00:43.9]} 16. Nd5 {[%clk 0:02:17.7]} 16... Qa7 {[%clk 0:00:34.7]} 17. c7
{[%clk 0:02:15.9]} 17... Rb7 {[%clk 0:00:12.8]} 18. Nxe7+ {[%clk 0:02:14.7]}
18... Kh8 {[%clk 0:00:12.8]} 19. Nxc8 {[%clk 0:02:14]} 19... Qa8 {[%clk
0:00:10.8]} 20. Nxd6 {[%clk 0:02:10.4]} 20... Nxd6 {[%clk 0:00:10]} 21. Bxc5
{[%clk 0:02:06.9]} 21... Rxc7 {[%clk 0:00:05.7]} 22. Bxd6 {[%clk 0:02:06.7]} 1-0

[Event "*** SCC Grand Prix: Titled Tuesday Blitz"]
[Site "Chess.com"]
[Date "2020.06.23"]
[Round "3"]
[White "davidkalashian"]
[Black "SilviusTiberius"]
[Result "1-0"]
[WhiteElo "2643"]
[BlackElo "2413"]
[TimeControl "180+1"]
[EndTime "10:26:18 PDT"]
[Termination "davidkalashian won by resignation"]

1. d4 {[%clk 0:03:00.9]} 1... Nf6 {[%clk 0:02:59.9]} 2. c4 {[%clk 0:02:59.3]}
2... g6 {[%clk 0:03:00.4]} 3. Nc3 {[%clk 0:02:58.1]} 3... Bg7 {[%clk 0:03:00.9]}
4. e4 {[%clk 0:02:58.6]} 4... d6 {[%clk 0:03:01.5]} 5. Be2 {[%clk 0:02:59.1]}
5... O-O {[%clk 0:03:01.7]} 6. Bg5 {[%clk 0:02:59.7]} 6... c5 {[%clk 0:03:01.8]}
7. d5 {[%clk 0:02:59.1]} 7... h6 {[%clk 0:03:02.1]} 8. Bf4 {[%clk 0:02:58.8]}
8... e6 {[%clk 0:03:02.6]} 9. dxe6 {[%clk 0:02:59.7]} 9... Bxe6 {[%clk
0:03:02.2]} 10. Qd2 {[%clk 0:03:00.2]} 10... Qb6 {[%clk 0:02:53.3]} 11. Bxh6
{[%clk 0:02:59]} 11... Bxh6 {[%clk 0:02:50.3]} 12. Qxh6 {[%clk 0:02:59.9]} 12...
Qxb2 {[%clk 0:02:50.5]} 13. Rc1 {[%clk 0:03:00.5]} 13... Re8 {[%clk 0:02:40.1]}
14. h4 {[%clk 0:02:59]} 14... Nh7 {[%clk 0:01:41.7]} 15. Nf3 {[%clk 0:02:49.2]}
15... Nc6 {[%clk 0:01:32.4]} 16. h5 {[%clk 0:02:28.6]} 16... g5 {[%clk
0:01:32.4]} 17. O-O {[%clk 0:02:22.5]} 17... Nd4 {[%clk 0:00:46.6]} 18. Nxg5
{[%clk 0:02:15.5]} 18... Nxe2+ {[%clk 0:00:46.4]} 19. Nxe2 {[%clk 0:02:14.2]}
19... Nxg5 {[%clk 0:00:44.1]} 20. Qxg5+ {[%clk 0:02:13.1]} 20... Qg7 {[%clk
0:00:44.7]} 21. Qf4 {[%clk 0:02:10.7]} 21... Kh8 {[%clk 0:00:32.5]} 22. Rc3
{[%clk 0:02:04.7]} 22... Rg8 {[%clk 0:00:27.5]} 23. Rg3 {[%clk 0:02:02.9]} 23...
Qh7 {[%clk 0:00:24.7]} 24. Qf6+ {[%clk 0:02:02.1]} 24... Rg7 {[%clk 0:00:23.6]}
25. h6 {[%clk 0:02:02.2]} 1-0

[Event "*** SCC Grand Prix: Titled Tuesday Blitz"]
[Site "Chess.com"]
[Date "2020.06.23"]
[Round "3"]
[White "pastouche06"]
[Black "A-Fier"]
[Result "0-1"]
[WhiteElo "2492"]
[BlackElo "2749"]
[TimeControl "180+1"]
[EndTime "10:26:19 PDT"]
[Termination "A-Fier won by resignation"]

1. d4 {[%clk 0:03:00.9]} 1... Nf6 {[%clk 0:02:59.8]} 2. c4 {[%clk 0:03:00.8]}
2... c5 {[%clk 0:03:00.3]} 3. d5 {[%clk 0:03:00.9]} 3... e6 {[%clk 0:03:01.2]}
4. Nc3 {[%clk 0:03:01.2]} 4... exd5 {[%clk 0:03:02.1]} 5. cxd5 {[%clk
0:03:02.1]} 5... d6 {[%clk 0:03:02.9]} 6. e4 {[%clk 0:03:02.3]} 6... g6 {[%clk
0:03:03.4]} 7. Nge2 {[%clk 0:03:01.6]} 7... Bg7 {[%clk 0:03:03.9]} 8. Ng3 {[%clk
0:03:02.2]} 8... O-O {[%clk 0:03:04]} 9. Be2 {[%clk 0:03:02.7]} 9... b6 {[%clk
0:03:04.6]} 10. O-O {[%clk 0:03:02.3]} 10... Ba6 {[%clk 0:03:05.3]} 11. Bg5
{[%clk 0:02:53.7]} 11... Bxe2 {[%clk 0:03:03.7]} 12. Qxe2 {[%clk 0:02:54.6]}
12... Nbd7 {[%clk 0:03:04]} 13. f4 {[%clk 0:02:45.3]} 13... Re8 {[%clk
0:03:04.3]} 14. Rae1 {[%clk 0:02:20.2]} 14... Qc7 {[%clk 0:03:03.6]} 15. Qd2
{[%clk 0:02:05.5]} 15... a6 {[%clk 0:03:03.2]} 16. e5 {[%clk 0:01:41.1]} 16...
dxe5 {[%clk 0:03:02.2]} 17. f5 {[%clk 0:01:41.5]} 17... c4 {[%clk 0:02:56.9]}
18. Nce4 {[%clk 0:01:36.6]} 18... Nxe4 {[%clk 0:02:55.9]} 19. Nxe4 {[%clk
0:01:37.5]} 19... b5 {[%clk 0:02:51.5]} 20. d6 {[%clk 0:01:18.2]} 20... Qb6+
{[%clk 0:02:51.2]} 21. Be3 {[%clk 0:01:16.6]} 21... Qc6 {[%clk 0:02:51.3]} 22.
Bh6 {[%clk 0:01:14.7]} 22... f6 {[%clk 0:02:40.6]} 23. fxg6 {[%clk 0:00:53.1]}
23... hxg6 {[%clk 0:02:41.5]} 24. Bxg7 {[%clk 0:00:51.8]} 24... Kxg7 {[%clk
0:02:42.4]} 25. Nxf6 {[%clk 0:00:28.7]} 25... Nxf6 {[%clk 0:02:40.9]} 26. Rxf6
{[%clk 0:00:29.6]} 26... Kxf6 {[%clk 0:02:37.8]} 27. Qh6 {[%clk 0:00:29.6]}
27... Qxd6 {[%clk 0:02:23.8]} 28. Rf1+ {[%clk 0:00:27.5]} 28... Ke7 {[%clk
0:02:24.4]} 0-1

[Event "*** SCC Grand Prix: Titled Tuesday Blitz"]
[Site "Chess.com"]
[Date "2020.06.23"]
[Round "3"]
[White "Nafania1"]
[Black "Eliwood44"]
[Result "1-0"]
[WhiteElo "2512"]
[BlackElo "2304"]
[TimeControl "180+1"]
[EndTime "10:26:20 PDT"]
[Termination "Nafania1 won by resignation"]

1. e4 {[%clk 0:03:00.9]} 1... e5 {[%clk 0:03:00.2]} 2. Nf3 {[%clk 0:03:00.7]}
2... Nc6 {[%clk 0:03:00]} 3. Bb5 {[%clk 0:03:00.6]} 3... g6 {[%clk 0:02:58.4]}
4. c3 {[%clk 0:03:00.4]} 4... Bg7 {[%clk 0:02:58.6]} 5. d4 {[%clk 0:03:00.1]}
5... a6 {[%clk 0:02:57.6]} 6. Be2 {[%clk 0:02:57.9]} 6... exd4 {[%clk
0:02:56.7]} 7. cxd4 {[%clk 0:02:58]} 7... d5 {[%clk 0:02:57.1]} 8. exd5 {[%clk
0:02:57.3]} 8... Qxd5 {[%clk 0:02:50.1]} 9. Nc3 {[%clk 0:02:57.2]} 9... Qd8
{[%clk 0:02:49.9]} 10. d5 {[%clk 0:02:57.2]} 10... Nce7 {[%clk 0:02:48]} 11. Bf4
{[%clk 0:02:50.8]} 11... Nf6 {[%clk 0:02:38.2]} 12. d6 {[%clk 0:02:50.4]} 12...
cxd6 {[%clk 0:02:37.6]} 13. Qxd6 {[%clk 0:02:49.8]} 13... O-O {[%clk 0:02:35.4]}
14. O-O {[%clk 0:02:47.1]} 14... Be6 {[%clk 0:02:32.1]} 15. Rfd1 {[%clk
0:02:40.9]} 15... Nf5 {[%clk 0:02:29]} 16. Qb4 {[%clk 0:02:30.1]} 16... Qc8
{[%clk 0:02:21]} 17. Rac1 {[%clk 0:02:29.5]} 17... Rd8 {[%clk 0:02:20]} 18.
Rxd8+ {[%clk 0:02:15.6]} 18... Qxd8 {[%clk 0:02:20.9]} 19. Qxb7 {[%clk
0:02:15.7]} 19... Nd5 {[%clk 0:02:13]} 20. Bg5 {[%clk 0:01:44.9]} 20... f6
{[%clk 0:01:51.1]} 21. Bd2 {[%clk 0:01:44.7]} 21... Rb8 {[%clk 0:01:47.6]} 22.
Qxa6 {[%clk 0:01:44.9]} 22... Nc7 {[%clk 0:01:44.4]} 23. Qa5 {[%clk 0:01:31.6]}
23... Qd7 {[%clk 0:01:00.9]} 24. Ne4 {[%clk 0:01:28.2]} 24... Ra8 {[%clk
0:00:53.7]} 25. Qxc7 {[%clk 0:01:26.9]} 1-0

[Event "*** SCC Grand Prix: Titled Tuesday Blitz"]
[Site "Chess.com"]
[Date "2020.06.23"]
[Round "3"]
[White "Thipsay"]
[Black "econpower"]
[Result "0-1"]
[WhiteElo "2470"]
[BlackElo "2738"]
[TimeControl "180+1"]
[EndTime "10:26:21 PDT"]
[Termination "econpower won by resignation"]

1. e4 {[%clk 0:03:00.9]} 1... d6 {[%clk 0:03:00.2]} 2. d4 {[%clk 0:03:00.3]}
2... Nf6 {[%clk 0:03:00.4]} 3. Nc3 {[%clk 0:03:00.4]} 3... e5 {[%clk 0:03:01]}
4. Nf3 {[%clk 0:03:00.2]} 4... Nbd7 {[%clk 0:03:01.3]} 5. Bc4 {[%clk 0:02:59.9]}
5... Be7 {[%clk 0:03:01.3]} 6. O-O {[%clk 0:02:58.5]} 6... O-O {[%clk
0:03:01.9]} 7. a4 {[%clk 0:02:58.6]} 7... c6 {[%clk 0:03:02.3]} 8. a5 {[%clk
0:02:57.1]} 8... Qc7 {[%clk 0:03:02.4]} 9. dxe5 {[%clk 0:02:56.9]} 9... dxe5
{[%clk 0:03:02]} 10. Nh4 {[%clk 0:02:57]} 10... Re8 {[%clk 0:03:01.3]} 11. Nf5
{[%clk 0:02:55.6]} 11... Bf8 {[%clk 0:03:01.9]} 12. Qf3 {[%clk 0:02:55.1]} 12...
b5 {[%clk 0:01:43.6]} 13. Bb3 {[%clk 0:02:45.9]} 13... Nc5 {[%clk 0:01:33.7]}
14. Bg5 {[%clk 0:02:39.5]} 14... Nxb3 {[%clk 0:01:33.7]} 15. cxb3 {[%clk
0:02:34.9]} 15... Bxf5 {[%clk 0:01:33.6]} 16. Qxf5 {[%clk 0:02:33.8]} 16... Nd7
{[%clk 0:01:33]} 17. Rfd1 {[%clk 0:02:30.5]} 17... Nc5 {[%clk 0:01:32.9]} 18. b4
{[%clk 0:02:24.2]} 18... Ne6 {[%clk 0:01:32.9]} 19. Rac1 {[%clk 0:02:22.7]}
19... Qb7 {[%clk 0:01:30.7]} 20. Na2 {[%clk 0:02:14.3]} 20... Nd4 {[%clk
0:01:30.6]} 21. Qh3 {[%clk 0:02:12]} 21... Ne2+ {[%clk 0:01:30.1]} 22. Kh1
{[%clk 0:02:11.1]} 22... Nxc1 {[%clk 0:01:30.6]} 23. Rxc1 {[%clk 0:02:11.3]}
23... f6 {[%clk 0:01:31.2]} 24. Be3 {[%clk 0:02:10.7]} 24... a6 {[%clk
0:01:31.6]} 25. Qf3 {[%clk 0:02:09.4]} 25... Rad8 {[%clk 0:01:31.4]} 26. Qe2
{[%clk 0:02:09.3]} 26... Qf7 {[%clk 0:01:30.1]} 27. Nc3 {[%clk 0:01:54.8]} 27...
Bxb4 {[%clk 0:01:29.9]} 28. Qc2 {[%clk 0:01:51.2]} 28... Qc4 {[%clk 0:01:28.8]}
29. h3 {[%clk 0:01:46]} 29... Rd3 {[%clk 0:01:26.4]} 30. Ne2 {[%clk 0:01:41]}
30... Qxc2 {[%clk 0:01:26]} 31. Rxc2 {[%clk 0:01:41]} 31... c5 {[%clk 0:01:21]}
32. Ng3 {[%clk 0:01:39.6]} 32... c4 {[%clk 0:01:20.1]} 33. Bb6 {[%clk
0:01:38.2]} 33... Re7 {[%clk 0:01:13]} 34. Nf5 {[%clk 0:01:37.4]} 34... Red7
{[%clk 0:01:13.4]} 35. Kh2 {[%clk 0:01:31]} 35... Rd2 {[%clk 0:01:13.3]} 0-1